bitfinex/quotes_ETHUSD_20241203
["timestamp","ask_amount","ask_price","bid_price","bid_amount"]
[1733267328089,2.75543,3629.2,3628.0,0.6383]
[1733267328297,1.5473,3629.4,3627.2,2.78450584]
[1733267328298,2.75557,3629.1,3628.4,0.6383]
[1733267328591,1.5473,3629.4,3628.4,0.6383]
[1733267328743,3.185534,3629.4,3628.4,0.6383]
[1733267328945,2.75543,3629.2,3628.4,0.6383]
[1733267329148,0.430254,3629.4,3628.4,0.6383]
[1733267329466,2.75566,3628.9,3628.4,0.6383]
[1733267329670,2.75573,3628.8,3628.4,0.6383]
[1733267329873,2.7556,3629.0,3628.4,0.6383]
[1733267330208,2.75565,3628.9,3628.4,0.6383]
[1733267330539,2.75574,3628.8,3628.4,0.6383]
[1733267331063,2.75584,3628.7,3628.4,0.6383]
[1733267331763,1.5473,3629.1,3628.4,0.6383]
[1733267332081,2.75583,3628.7,3628.4,0.6383]
[1733267333180,1.5473,3629.1,3628.4,0.6383]
[1733267333340,2.75581,3628.7,3628.4,0.6383]
[1733267333542,0.275581,3628.7,3627.5,2.67042982]
[1733267333782,2.75633,3628.1,3627.2,0.6383]
[1733267333954,2.7557,3628.9,3627.2,0.6383]
[1733267334281,2.75603,3628.5,3627.6,0.6383]
[1733267334491,1.5473,3629.1,3627.6,0.6383]
[1733267334783,1.5473,3628.3,3627.6,0.6383]
[1733267335204,1.5473,3628.3,3626.1,0.39933146]
[1733267335205,1.5473,3628.3,3626.8,0.6383]
[1733267335546,2.75664,3627.6,3626.8,0.6383]
[1733267336141,2.75672,3627.5,3626.8,0.6383]
[1733267336777,1.5473,3628.3,3626.8,0.6383]
[1733267336951,2.96090939,3628.2,3626.8,0.6383]
[1733267337156,2.75667,3627.6,3626.8,0.6383]
[1733267337470,2.75672,3627.5,3626.8,0.6383]
[1733267337669,1.5473,3628.3,3626.8,0.6383]
[1733267337844,2.75626,3628.1,3626.8,0.6383]
[1733267338046,2.75665,3627.6,3626.8,0.6383]
[1733267338394,2.75626,3628.1,3626.8,0.6383]
[1733267338679,2.75695,3627.2,3626.8,0.6383]
[1733267338840,2.75663,3627.7,3626.8,0.6383]
[1733267339042,2.7568,3627.4,3626.8,0.6383]
[1733267339783,0.32777505,3628.2,3626.9,0.02757053]
[1733267339944,2.96119692,3628.1,3626.8,0.6383]
[1733267340304,0.20493692,3628.0,3626.8,0.6383]
[1733267340442,2.75663,3627.7,3626.8,0.6383]
[1733267340645,1.5473,3628.3,3626.8,0.6383]
[1733267340859,0.78920168,3628.2,3626.8,0.6383]
[1733267341057,2.75662,3627.7,3626.8,0.6383]
[1733267341284,2.75693,3627.3,3626.8,0.6383]
[1733267341455,0.32806977,3628.0,3626.8,0.6383]
[1733267341665,0.46145207,3627.9,3626.8,0.6383]
[1733267341846,0.20508972,3627.8,3626.8,0.6383]
[1733267342203,1.81478972,3627.7,3626.8,0.6383]
[1733267342342,2.75712,3627.0,3626.8,0.6383]
[1733267343048,2.7571,3627.0,3626.8,0.6383]
[1733267344701,2.7571,3627.0,3625.9,2.67042982]
[1733267344702,2.75683,3627.4,3626.0,0.6383]
[1733267344875,0.20532416,3627.3,3626.0,0.6383]
[1733267345047,2.75736,3626.7,3626.0,0.6383]
[1733267345447,2.75704,3627.1,3626.0,0.6383]
[1733267345698,2.75671,3627.5,3626.1,0.6383]
[1733267345999,0.79079197,3627.4,3626.1,0.6383]
[1733267346198,0.20540051,3627.3,3626.1,0.6383]
[1733267346346,0.25683761,3627.5,3626.1,0.6383]
[1733267346548,2.7571,3627.0,3626.1,0.6383]
[1733267346859,2.75732,3626.7,3626.1,0.6383]
[1733267347046,2.75739,3626.7,3626.1,0.6383]
[1733267347878,2.75718,3626.9,3626.1,0.6383]
[1733267348245,0.54952177,3627.4,3626.4,0.6383]
[1733267348495,3.2198398,3627.3,3626.4,0.6383]
[1733267348797,0.20575991,3627.2,3626.4,0.6383]
[1733267348997,0.20575991,3627.1,3626.4,0.6383]
[1733267349197,2.75688,3627.3,3626.4,0.6383]
[1733267349354,0.20577103,3627.2,3626.4,0.6383]
[1733267349693,0.20577103,3627.1,3626.4,0.6383]
[1733267349895,2.75689,3627.3,3626.4,0.6383]
[1733267350198,2.75721,3626.9,3626.4,0.6383]
[1733267350348,2.75702,3627.1,3626.4,0.6383]
[1733267350553,0.20577574,3627.0,3626.4,0.6383]
[1733267350758,2.75702,3627.1,3626.4,0.6383]
[1733267351185,1.93638201,3628.0,3626.4,0.6383]
[1733267351186,2.75686,3627.4,3626.4,0.6383]
[1733267351571,3.49717314,3627.9,3626.4,0.6383]
[1733267351572,2.75666,3627.6,3626.4,0.6383]
[1733267351995,0.46292437,3627.5,3626.4,0.6383]
[1733267352201,2.75666,3627.6,3626.4,0.6383]
[1733267352403,0.20573892,3627.5,3626.4,0.6383]
[1733267352700,4.41858,3628.0,3626.4,0.6383]
[1733267352884,1.2035411,3627.9,3626.4,0.6383]
[1733267353200,0.46290042,3627.8,3626.7,2.67042982]
[1733267353360,0.46290042,3627.7,3626.8,0.6383]
[1733267353559,2.75618,3628.2,3626.8,0.6383]
[1733267353560,0.7406419,3628.0,3626.8,0.6383]
[1733267353758,0.46289996,3627.9,3626.8,0.6383]
[1733267354086,0.58388283,3628.5,3626.9,0.6383]
[1733267354087,0.20573312,3627.8,3626.9,0.6383]
[1733267354252,2.7569,3627.3,3626.9,0.6383]
[1733267354450,2.75674,3627.5,3626.9,0.6383]
[1733267354891,0.46293548,3627.4,3626.9,0.6383]
[1733267355189,2.75678,3627.5,3626.9,0.6383]
[1733267355419,0.74063018,3627.8,3626.9,0.6383]
[1733267355707,2.75674,3627.5,3626.9,0.6383]
[1733267355883,2.75681,3627.4,3626.9,0.6383]
[1733267356403,2.757,3627.2,3626.9,0.6383]
[1733267357603,0.32915463,3627.8,3626.9,0.6383]
[1733267357775,2.75681,3627.4,3626.9,0.6383]
[1733267357971,0.41146164,3627.7,3626.9,0.6383]
[1733267358170,0.46287049,3627.6,3626.9,0.6383]
[1733267358375,0.46287049,3627.5,3626.9,0.6383]
[1733267358575,0.99777271,3628.0,3626.9,0.6383]
[1733267358904,1.62284485,3627.9,3626.9,0.6383]
[1733267359123,2.7567,3627.6,3626.9,0.6383]
[1733267359403,2.12509769,3627.5,3626.6,0.6383]
[1733267359553,2.75724,3626.9,3626.6,0.6383]
[1733267359904,2.75726,3626.8,3626.6,0.6383]
[1733267360498,2.75711,3627.0,3626.6,0.6383]
[1733267360855,2.757,3627.2,3626.6,0.6383]
[1733267361288,1.6615,3627.8,3626.6,0.6383]
[1733267361495,2.75685,3627.4,3626.6,0.6383]
[1733267361672,3.02309805,3627.7,3626.6,0.6383]
[1733267361891,0.4635159,3627.6,3626.6,0.6383]
[1733267362073,2.75705,3627.1,3626.6,0.6383]
[1733267362568,2.75703,3627.1,3626.6,0.6383]
[1733267363095,2.75689,3627.3,3626.6,0.6383]
[1733267363808,2.75694,3627.2,3626.6,0.6383]
[1733267364107,0.4642019,3627.1,3626.6,0.6383]
[1733267364258,0.4642019,3627.0,3626.6,0.6383]
[1733267364459,2.75725,3626.8,3626.6,0.6383]
[1733267364770,2.75725,3626.8,3625.6,0.6383]
[1733267364970,2.75721,3626.9,3625.6,0.6383]
[1733267365273,2.75733,3626.7,3625.6,0.6383]
[1733267366185,0.74355427,3627.0,3625.6,2.75815]
[1733267366510,0.46474848,3626.9,3625.7,0.6383]
[1733267366678,0.46469306,3626.8,3625.7,0.6383]
[1733267366877,1.5145,3627.1,3625.7,0.6383]
[1733267367076,0.62152411,3627.1,3625.7,0.6383]
[1733267367405,2.75717,3626.9,3625.7,0.6383]
[1733267367707,2.75735,3626.7,3625.7,0.6383]
[1733267368077,2.75742,3626.6,3625.7,0.6383]
[1733267368963,0.33291469,3627.0,3625.7,0.6383]
[1733267369277,2.75732,3626.8,3625.8,1.5313]
[1733267369476,2.75716,3627.0,3625.7,1.5313]
[1733267369698,0.52237297,3627.3,3625.8,1.5313]
[1733267369908,2.75719,3626.9,3625.8,1.5313]
[1733267370478,2.75704,3627.1,3625.8,4.20172982]
[1733267370675,2.75711,3627.0,3625.9,1.5313]
[1733267370990,2.75732,3626.8,3625.9,1.5313]
[1733267371303,2.75713,3627.0,3625.9,1.5313]
[1733267371693,2.7572,3626.9,3625.9,1.5313]
[1733267372007,2.75723,3626.9,3625.9,1.5313]
[1733267372219,2.75743,3626.6,3625.9,1.5313]
[1733267372360,2.75748,3626.5,3625.9,1.5313]
[1733267372765,2.75757,3626.4,3625.9,1.5313]
[1733267372969,2.75738,3626.7,3625.9,1.5313]
[1733267373166,2.75742,3626.6,3625.9,1.5313]
[1733267373996,2.75755,3626.5,3625.9,1.5313]
[1733267374525,2.75725,3626.8,3625.9,1.5313]
[1733267374810,2.75744,3626.6,3625.9,1.68443]
[1733267375869,2.75727,3626.8,3625.9,1.68443]
[1733267376064,2.75695,3627.2,3625.9,1.68443]
[1733267376396,2.75735,3626.7,3625.9,1.68443]
[1733267376921,2.7574,3626.6,3625.9,1.68443]
[1733267377087,2.7574,3626.6,3626.0,0.168443]
[1733267378703,0.17243161,3627.3,3626.0,0.168443]
[1733267378905,2.75763,3626.4,3625.9,1.5313]
[1733267380067,2.75778,3626.1,3625.9,1.5313]
[1733267380867,4.38872,3626.5,3625.9,1.5313]
[1733267381105,0.47216347,3626.4,3625.9,1.5313]
[1733267381311,2.75777,3626.2,3625.9,1.5313]
[1733267381691,2.75781,3626.1,3625.9,1.5313]
[1733267384724,2.75771,3626.2,3625.9,1.5313]
[1733267385937,2.75758,3626.4,3625.9,1.5313]
[1733267386094,2.75763,3626.3,3625.9,1.5313]
[1733267386292,2.7575,3626.5,3625.9,1.68443]
[1733267387603,0.50535037,3627.1,3625.9,1.68443]
[1733267387806,0.46456139,3627.0,3626.1,1.5313]
[1733267388136,2.75697,3627.2,3626.1,1.5313]
[1733267388436,0.46449211,3627.1,3626.1,1.5313]
[1733267388639,0.25805117,3627.0,3626.2,1.5313]
[1733267388813,1.32332268,3627.5,3626.2,1.5313]
[1733267389134,2.75696,3627.2,3626.2,1.5313]
[1733267389289,0.46455837,3627.1,3626.2,1.5313]
[1733267389496,0.46455837,3627.0,3626.2,1.5313]
[1733267389697,1.15092071,3627.7,3626.5,2.67042982]
[1733267389939,1.46602545,3627.6,3626.6,1.55886977]
[1733267390236,0.46458553,3627.5,3626.7,1.5192]
[1733267390398,2.75649,3627.8,3626.8,1.5192]
[1733267390735,0.46442607,3627.7,3626.8,1.5192]
[1733267390900,0.20641159,3627.6,3626.8,1.5192]
[1733267391241,2.75649,3627.8,3626.8,1.5192]
[1733267391421,0.46445676,3627.7,3626.8,1.5192]
[1733267391622,2.75649,3627.8,3626.8,1.5192]
[1733267391933,2.75636,3628.0,3626.9,1.5192]
[1733267392146,3.22071946,3627.9,3626.9,1.5192]
[1733267392296,0.46429946,3627.8,3627.1,1.5192]
[1733267392498,1.4838354,3628.3,3627.1,1.5192]
[1733267392499,2.75635,3628.0,3627.1,1.5192]
[1733267392718,0.20629677,3627.9,3627.1,1.5192]
[1733267393044,2.75635,3628.0,3627.1,1.5192]
[1733267393228,0.20629851,3627.9,3627.2,0.02756656]
[1733267393397,2.75596,3628.5,3627.4,1.5313]
[1733267393595,0.46398513,3628.4,3627.4,1.5313]
[1733267393796,2.75596,3628.5,3627.4,1.5313]
[1733267394059,0.20620455,3628.4,3627.4,1.5313]
[1733267394202,4.65195469,3628.8,3627.8,1.5313]
[1733267394400,4.65195469,3628.8,3627.0,2.78458187]
[1733267394401,0.33291469,3628.4,3627.0,2.75707]
[1733267394622,3.08897469,3628.4,3627.1,1.5313]
[1733267394938,0.55898014,3628.3,3626.9,1.5313]
[1733267395140,0.55898014,3628.3,3626.8,2.67042982]
[1733267395141,0.35291469,3628.3,3627.4,1.5313]
[1733267395353,2.72442071,3628.9,3627.5,1.5313]
[1733267395509,0.35291469,3628.6,3627.5,1.5313]
[1733267395838,0.46341531,3628.5,3627.7,1.5313]
[1733267396039,3.10883469,3628.6,3627.7,1.5313]
[1733267396211,0.20595893,3628.5,3627.7,1.5313]
[1733267396412,0.35291469,3628.6,3627.7,1.5313]
[1733267397858,2.75595,3628.5,3627.7,1.5313]
[1733267398025,2.75612,3628.3,3627.7,1.5313]
[1733267398355,2.7562,3628.2,3627.7,1.5313]
[1733267398872,2.7563,3628.1,3627.7,1.5313]
[1733267399015,3.10921469,3628.1,3627.7,1.5313]
[1733267399664,2.7564,3628.0,3627.7,1.5313]
[1733267399881,2.7564,3628.0,3626.9,1.5245]
[1733267399882,0.31093147,3628.0,3626.9,1.5245]
[1733267400030,0.35291469,3628.1,3626.9,1.5245]
[1733267400236,2.75627,3628.1,3627.0,1.5245]
[1733267400743,2.75634,3628.0,3627.0,1.5245]
[1733267400958,2.75619,3628.2,3627.0,1.5245]
[1733267401128,2.75603,3628.4,3627.0,1.5313]
[1733267401334,2.7564,3628.0,3627.0,1.5313]
[1733267401880,1.88631469,3628.6,3627.0,1.5313]
[1733267402028,0.20564341,3628.5,3627.2,1.5313]
[1733267402227,2.75606,3628.4,3627.3,1.5313]
[1733267402429,0.32903001,3628.8,3627.3,1.5313]
[1733267402645,0.20560958,3628.7,3627.8,1.5313]
[1733267402863,0.60992513,3628.9,3627.8,1.5313]
[1733267403071,2.75573,3628.8,3627.8,1.5313]
[1733267403371,2.75581,3628.7,3627.8,1.5313]
[1733267403582,0.35291469,3628.8,3627.9,0.15313]
[1733267404302,2.75634,3628.0,3627.8,1.5313]
[1733267404597,2.75633,3628.1,3627.8,1.5313]
[1733267405669,2.75633,3628.1,3627.7,0.03432368]
[1733267405870,2.75637,3628.0,3627.7,0.03432368]
[1733267406398,2.75584,3628.7,3627.8,1.5313]
[1733267406600,3.82135053,3629.2,3627.8,1.5313]
[1733267406601,0.32881453,3629.0,3627.8,1.5313]
[1733267406751,0.20550357,3628.9,3628.0,1.5313]
[1733267406955,0.46238457,3629.2,3628.1,1.5313]
[1733267407169,0.2054593,3629.5,3628.0,0.02755586]
[1733267407467,0.2054593,3629.5,3627.8,2.75645]
[1733267407468,2.75527,3629.5,3628.4,1.5313]
[1733267407681,2.73877,3629.5,3628.4,1.5313]
[1733267407917,1.6189,3629.9,3628.5,1.5114]
[1733267408205,2.75514,3629.6,3628.5,1.5114]
[1733267409301,2.75503,3629.8,3628.6,1.5014]
[1733267409596,2.35459378,3629.9,3628.6,1.5014]
[1733267409797,2.75504,3629.7,3628.6,1.5014]
[1733267409981,2.75519,3629.6,3628.6,1.5014]
[1733267410186,2.75521,3629.5,3628.7,0.15014]
[1733267413620,2.75459,3630.3,3628.8,1.5313]
[1733267413826,0.4616905,3630.2,3629.1,1.5313]
[1733267414114,2.75483,3630.0,3629.1,1.5313]
[1733267414476,1.6125,3630.4,3629.1,1.5313]
[1733267414724,2.75519,3629.6,3629.1,1.68443]
[1733267414892,2.75519,3629.6,3629.1,1.5313]
[1733267416006,2.75497,3629.8,3629.1,1.5313]
[1733267417126,2.75509,3629.7,3629.1,1.5313]
[1733267418042,0.16125,3630.3,3629.1,1.5313]
[1733267418334,2.75497,3629.8,3629.1,1.5313]
[1733267418499,2.75497,3629.8,3629.2,0.15313]
[1733267419084,2.75463,3630.3,3629.3,1.5313]
[1733267419306,0.20541239,3630.2,3629.4,0.02754849]
[1733267419526,2.27330215,3630.7,3629.3,1.5313]
[1733267419527,0.58534275,3630.6,3629.3,1.5313]
[1733267419748,2.75464,3630.3,3629.4,0.17187537]
[1733267420055,2.75466,3630.3,3629.5,1.5313]
[1733267420402,2.7544,3630.6,3629.5,1.5313]
[1733267420714,0.32857736,3630.8,3629.5,1.5313]
[1733267420715,2.7546,3630.3,3629.5,1.5313]
[1733267420906,0.32857736,3630.8,3629.5,1.5313]
[1733267421105,2.7547,3630.2,3629.5,1.5313]
[1733267421305,2.7547,3630.2,3629.6,0.15313]
[1733267421955,0.33767158,3630.8,3629.6,0.15313]
[1733267421956,2.75452,3630.4,3629.6,0.15313]
[1733267422110,2.75452,3630.4,3629.7,1.5313]
[1733267422532,0.33767158,3630.8,3629.8,0.02754558]
[1733267422716,0.20536981,3630.7,3630.1,5.42516982]
[1733267422980,0.84202422,3631.2,3630.3,1.5313]
[1733267423130,0.46206002,3631.1,3630.2,1.5313]
[1733267423348,0.58531471,3631.4,3630.3,1.5313]
[1733267423508,0.46198625,3631.3,3630.3,1.5313]
[1733267423708,3.02690318,3632.0,3630.3,1.5313]
[1733267423709,0.20528013,3631.2,3630.5,2.67042982]
[1733267423910,0.25657589,3631.6,3630.6,1.5313]
[1733267424110,0.2052574,3631.5,3630.8,2.7542]
[1733267424347,0.256367,3631.9,3630.9,1.5313]
[1733267424552,0.20509791,3631.8,3630.9,1.5313]
[1733267424766,0.20509791,3631.7,3630.9,1.5313]
[1733267424912,0.256367,3632.0,3631.1,1.5313]
[1733267425109,0.2050848,3631.9,3631.1,1.5313]
[1733267425473,0.33767158,3632.1,3631.1,1.5313]
[1733267425814,2.75317,3632.2,3631.1,1.5313]
[1733267426214,3.09066158,3632.5,3631.4,1.5313]
[1733267426413,3.09066158,3632.5,3631.3,5.42418982]
[1733267426414,0.20477144,3632.4,3631.6,1.5313]
[1733267426751,2.7532,3632.2,3631.6,1.5313]
[1733267427018,2.75322,3632.1,3631.6,1.5313]
[1733267427327,2.75332,3632.0,3631.6,1.5313]
[1733267427530,2.75338,3631.9,3631.6,1.5313]
[1733267427728,2.75284,3632.6,3631.6,1.5313]
[1733267427923,2.75353,3631.7,3631.6,1.5313]
[1733267428126,2.77852548,3631.7,3631.6,1.5313]
[1733267428714,0.02499548,3631.7,3630.9,2.67042982]
[1733267428918,0.02499548,3631.7,3630.6,3.0]
[1733267428919,2.75341,3631.9,3631.0,1.5313]
[1733267429258,2.75353,3631.7,3631.0,1.5313]
[1733267429412,2.77944809,3631.8,3631.0,1.5313]
[1733267429616,0.02583715,3631.6,3631.0,1.5313]
[1733267429817,2.75376,3631.4,3631.0,1.5313]
[1733267430055,2.75391,3631.2,3631.0,1.5313]
[1733267430426,0.02583715,3631.1,3631.0,1.5313]
[1733267430688,2.77981715,3631.1,3631.0,1.5313]
[1733267430904,0.02583715,3631.1,3630.2,1.5103]
[1733267431105,2.75389,3631.3,3630.2,1.5103]
[1733267431314,1.5322,3631.2,3629.7,1.5103]
[1733267431634,2.75406,3631.0,3629.7,1.5103]
[1733267431917,2.75447,3630.5,3629.7,1.5103]
[1733267432424,0.02523768,3630.4,3629.7,1.5103]
[1733267432716,2.77979768,3630.4,3629.8,0.15103]
[1733267433317,2.75462,3630.3,3629.8,0.15103]
[1733267433615,2.75486,3630.0,3629.7,1.5103]
[1733267433924,0.02442233,3629.9,3629.7,1.5103]
[1733267436229,2.75464,3630.3,3629.2,1.5313]
[1733267436432,1.602,3630.5,3629.2,1.5313]
[1733267436433,2.75505,3629.7,3629.2,1.5313]
[1733267436845,2.77940499,3629.6,3629.2,1.5313]
[1733267437148,2.75527,3629.4,3629.2,1.5313]
[1733267437349,0.02429604,3629.3,3629.2,1.5313]
[1733267437710,2.75515,3629.6,3629.2,1.5313]
[1733267438031,2.75558,3629.0,3627.9,1.5313]
[1733267438209,4.31801,3629.4,3627.9,1.5313]
[1733267438411,1.5627,3629.4,3627.9,1.5313]
[1733267438765,0.2295445,3629.3,3627.9,1.5313]
[1733267438912,0.53366487,3629.2,3627.9,1.5313]
[1733267439253,2.75606,3628.4,3627.9,1.5313]
[1733267439407,0.79026828,3629.1,3627.9,1.5313]
[1733267439408,0.32843219,3629.0,3627.9,1.5313]
[1733267439608,2.75617,3628.3,3627.1,4.31586895]
[1733267439812,2.75617,3628.3,3627.1,4.28831]
[1733267440049,2.75619,3628.2,3627.1,4.28831]
[1733267441031,2.75601,3628.5,3627.2,2.75693]
[1733267441207,2.75603,3628.4,3627.4,2.67042982]
[1733267441410,3.08393173,3628.9,3627.4,5.42721982]
[1733267441650,2.7561,3628.4,3627.4,2.67042982]
[1733267442351,2.7561,3628.4,3627.4,2.62142982]
[1733267442662,1.6394,3629.0,3627.5,2.75671]
[1733267442863,0.20498889,3628.9,3627.9,2.75637]
[1733267443013,2.75543,3629.2,3628.0,1.5313]
[1733267443207,0.20498091,3629.1,3628.4,1.5313]
[1733267443441,0.2049303,3629.5,3628.4,1.5313]
[1733267443635,2.75543,3629.2,3628.4,1.5313]
[1733267444152,3.08303223,3629.7,3628.4,1.5313]
[1733267444450,5.42525982,3630.0,3628.0,1.5313]
[1733267444451,1.5236,3629.0,3628.0,1.5313]
[1733267444748,2.7558,3628.7,3628.1,0.15313]
[1733267444952,1.5236,3629.0,3628.1,0.15313]
[1733267445156,1.5236,3629.0,3628.0,1.5313]
[1733267445355,2.75614,3628.3,3627.4,1.5313]
[1733267446512,2.75619,3628.2,3627.4,1.5313]
[1733267446849,2.75585,3628.7,3627.4,1.5313]
[1733267447055,2.7562,3628.2,3627.4,1.5313]
[1733267447749,2.75599,3628.5,3627.4,1.5313]
[1733267448051,2.75603,3628.4,3627.4,1.5313]
[1733267449895,2.75603,3628.4,3627.9,0.00782437]
[1733267450252,2.75615,3628.3,3627.9,0.00782437]
[1733267450451,0.15236,3628.9,3627.9,0.00782437]
[1733267450755,2.75614,3628.3,3627.9,0.00782437]
[1733267451100,2.75594,3628.6,3627.9,0.00782437]
[1733267451592,2.75598,3628.5,3627.9,0.00782437]
[1733267451796,2.75606,3628.4,3627.9,0.00782437]
[1733267453158,2.75591,3628.6,3627.9,0.00782437]
[1733267453312,1.5013,3628.8,3627.9,0.00782437]
[1733267453478,0.440924,3628.7,3627.9,0.00782437]
[1733267453683,2.75603,3628.5,3627.9,0.00782437]
[1733267454707,2.75588,3628.6,3627.9,0.00782437]
[1733267454922,2.75633,3628.0,3627.9,0.00782437]
[1733267455079,3.031963,3628.0,3627.9,0.00782437]
[1733267455410,4.547063,3628.0,3627.9,0.00782437]
[1733267455905,7.547063,3628.0,3627.9,0.00782437]
[1733267456470,7.547063,3628.0,3627.9,4.69e-06]
[1733267457611,7.75189399,3628.0,3627.9,4.69e-06]
[1733267457916,8.00793866,3628.0,3627.9,4.69e-06]
[1733267458271,8.33590969,3628.0,3627.9,4.69e-06]
[1733267459166,5.00793866,3628.0,3627.9,4.69e-06]
[1733267459366,4.47626099,3628.0,3627.9,4.69e-06]
[1733267459595,4.27143,3628.0,3627.9,4.69e-06]
[1733267460070,2.75633,3628.0,3627.9,4.69e-06]
[1733267460528,1.5117,3628.3,3627.9,4.69e-06]
[1733267460935,0.27327794,3629.0,3627.9,4.69e-06]
[1733267460936,2.75552,3629.1,3628.0,1.5313]
[1733267461137,0.20509797,3628.7,3628.1,0.18068887]
[1733267461436,3.26841747,3629.1,3628.1,0.15313047]
[1733267461586,0.46157841,3629.0,3628.1,0.15313047]
[1733267461788,2.75539,3629.3,3628.2,0.02755896]
[1733267462002,0.2051787,3629.2,3628.4,1.5313]
[1733267462303,2.75526,3629.5,3628.4,4.28732]
[1733267462505,0.20529555,3629.4,3628.4,1.5313]
[1733267462832,3.01174374,3629.6,3628.5,2.75593]
[1733267463039,0.20529109,3629.5,3628.6,1.5313]
[1733267463242,0.20529109,3629.4,3628.6,4.28713]
[1733267463418,0.20529109,3629.3,3628.7,2.75579]
[1733267463602,0.20529109,3629.3,3628.6,1.5313]
[1733267463603,3.34012533,3629.7,3628.6,1.5313]
[1733267463806,2.30130529,3629.6,3628.0,1.5313]
[1733267464023,1.5108,3629.4,3628.0,1.5313]
[1733267464209,2.75589,3628.6,3628.0,1.5313]
[1733267464536,2.75602,3628.5,3628.0,1.5313]
[1733267465055,2.75626,3628.2,3627.3,1.5313]
[1733267465254,2.75604,3628.4,3627.3,1.5313]
[1733267465558,0.20568855,3628.3,3627.7,1.5313]
[1733267465761,4.26667,3628.7,3627.7,1.5313]
[1733267465900,0.7918894,3628.6,3627.7,1.5313]
[1733267466106,0.46279251,3628.5,3627.7,1.5313]
[1733267466326,0.20568556,3628.4,3627.7,1.5313]
[1733267466527,0.20568556,3628.3,3627.7,1.5313]
[1733267466730,0.25722467,3628.5,3627.7,1.5313]
[1733267466937,0.20578036,3628.4,3627.7,1.5313]
[1733267467138,0.20578036,3628.3,3627.8,0.15313]
[1733267467342,2.75588,3628.6,3627.8,0.15313]
[1733267467648,0.79231088,3628.5,3627.7,1.5313]
[1733267467832,0.46303891,3628.4,3627.7,1.5313]
[1733267468191,0.20579507,3628.3,3627.7,1.5313]
[1733267468352,0.20579507,3628.2,3627.7,1.5313]
[1733267468507,2.75614,3628.3,3627.7,1.5313]
[1733267468708,0.20594939,3628.2,3627.7,1.5313]
[1733267469005,0.20594939,3628.1,3627.7,1.5313]
[1733267469205,1.5108,3628.7,3627.7,1.68443]
[1733267469206,0.99884868,3628.6,3627.7,1.68443]
[1733267469514,2.75611,3628.4,3627.7,1.5313]
[1733267469731,0.46334345,3628.3,3627.7,1.5313]
[1733267469940,1.5108,3628.7,3627.7,1.5313]
[1733267469941,0.20593042,3628.2,3627.7,1.5313]
[1733267470152,0.20593042,3628.1,3627.7,1.5313]
[1733267470440,3.3429293,3628.5,3627.7,1.5313]
[1733267470602,1.5108,3628.7,3627.7,1.5313]
[1733267470603,3.54895606,3628.4,3627.7,1.5313]
[1733267470805,0.79289606,3628.3,3627.7,1.5313]
[1733267471048,0.20594064,3628.2,3627.7,4.44096]
[1733267471233,0.20594064,3628.1,3627.7,1.68443]
[1733267471406,3.16753875,3628.9,3627.8,2.75646]
[1733267471605,3.5485713,3628.8,3627.7,1.68443]
[1733267471919,0.4633413,3628.7,3627.8,0.168443]
[1733267472124,0.2059325,3628.6,3627.8,0.168443]
[1733267472359,3.26256864,3629.1,3627.9,2.7564]
[1733267472536,1.05015299,3629.0,3627.9,2.7564]
[1733267472720,0.79276255,3628.9,3627.8,0.168443]
[1733267473081,0.20591235,3628.8,3628.0,4.28761]
[1733267473223,0.20591235,3628.7,3628.0,1.5313]
[1733267473424,0.32947266,3629.0,3628.2,2.75618]
[1733267473649,0.2059054,3628.9,3628.2,2.75615]
[1733267473859,4.38673,3629.2,3628.2,2.75615]
[1733267474169,0.41180684,3629.6,3628.0,4.68283625]
[1733267474170,0.20589823,3629.1,3628.5,2.75589]
[1733267474368,0.25732497,3629.4,3628.5,2.75589]
[1733267474518,0.20586794,3629.3,3628.6,0.02755452]
[1733267474720,0.99844145,3629.8,3628.7,1.5313]
[1733267474964,0.25732984,3629.7,3628.9,2.75562]
[1733267475260,0.7925769,3629.6,3628.8,0.15313]
[1733267475456,0.20586387,3629.5,3628.8,2.90885]
[1733267475616,0.20586387,3629.4,3628.8,2.90885]
[1733267475824,0.32930317,3629.7,3628.7,1.5313]
[1733267476022,2.75542,3629.3,3628.7,1.5313]
[1733267476247,2.96133026,3629.2,3627.7,2.75651]
[1733267476458,2.75564,3629.0,3628.1,1.5313]
[1733267476630,2.75573,3628.8,3628.1,1.5313]
[1733267476838,4.3072,3629.3,3628.1,1.5313]
[1733267477166,2.75626,3628.1,3627.8,1.5313]
[1733267477463,2.75626,3628.1,3627.1,1.5313]
[1733267477664,2.75634,3628.0,3627.1,1.5313]
[1733267477888,2.75598,3628.5,3627.4,2.75673]
[1733267478027,0.46316977,3628.4,3627.3,1.5313]
[1733267478339,0.20585323,3628.3,3627.3,4.28816]
[1733267478535,0.20585323,3628.2,3627.3,4.28816]
[1733267478765,2.75603,3628.4,3627.3,4.28816]
[1733267478924,2.96203413,3628.3,3627.3,1.5313]
[1733267479126,0.20585413,3628.2,3627.3,4.28816]
[1733267479321,0.20585413,3628.1,3627.3,4.28816]
[1733267479526,2.75596,3628.5,3627.5,2.75671]
[1733267479762,2.75611,3628.3,3627.3,4.28814]
[1733267479922,0.20585497,3628.2,3627.3,4.28814]
[1733267480122,2.30184142,3629.4,3627.3,4.28814]
[1733267480123,0.20585497,3628.1,3627.3,4.3156831]
[1733267480362,0.2745498,3629.0,3627.3,4.3156831]
[1733267480363,0.58669264,3628.6,3627.5,2.7567]
[1733267480542,0.46316158,3628.5,3627.3,1.5313]
[1733267480760,1.5518,3629.1,3627.7,1.5313]
[1733267480761,0.20585004,3628.4,3627.7,1.5313]
[1733267480959,0.58664635,3628.9,3628.0,2.75627]
[1733267481191,0.58664635,3628.9,3627.8,0.02756028]
[1733267481192,0.20582957,3628.8,3627.8,2.75647]
[1733267481346,0.20582957,3628.7,3627.8,2.75647]
[1733267481551,4.30732,3629.1,3628.0,2.75633]